fUSD/lending_fUSD_20240319
["ID","MTS","AMOUNT","RATE_DAILY","PERIOD"]
[319504476,1710806403007,150.0,6.94e-05,2]
[319504477,1710806403032,142.44337974,6.94e-05,2]
[319504478,1710806747195,-155.0,0.00013384,2]
[319504479,1710806747231,-505.80995178,0.00013491,2]
[319504480,1710806747264,-274.91011527,0.000137,2]
[319504481,1710806747296,-170.92056439,0.00013897,2]
[319504482,1710806747326,-300.0,0.00013999,2]
[319504483,1710806747356,-150.0,0.00013999,2]
[319504484,1710806747390,-500.0,0.00014,2]
[319504485,1710806747424,-343.00375875,0.00014,2]
[319504486,1710806827820,150.0,0.00011901,2]
[319504487,1710806827841,150.0,0.00011901,2]
[319504488,1710806827860,150.0,0.00011901,2]
[319504489,1710806827879,150.0,0.00011901,2]
[319504490,1710806827914,150.0,0.00011901,2]
[319504491,1710806827935,150.0,0.00011901,2]
[319504492,1710806827955,150.0,0.00011901,2]
[319504493,1710806827975,150.0,0.00011901,2]
[319504494,1710806827995,150.0,0.00011901,2]
[319504495,1710806828015,150.0,0.00011901,2]
[319504496,1710806828035,150.0,0.00011901,2]
[319504497,1710806828054,150.0,0.00011901,2]
[319504498,1710806828074,150.0,0.00011901,2]
[319504499,1710806828095,150.0,0.00011901,2]
[319504500,1710806828116,150.0,0.00011901,2]
[319504501,1710806828138,150.0,0.00011901,2]
[319504502,1710806828162,150.0,0.00011901,2]
[319504503,1710806828187,150.0,0.00011901,2]
[319504504,1710806828209,150.0,0.00011901,2]
[319504505,1710806828230,243.70092221,0.00011901,2]
[319504506,1710806831109,-964.7365033,0.00011901,2]
[319504507,1710806832866,-150.0,0.00011901,2]
[319504508,1710806833826,-150.0,0.00011901,2]
[319504509,1710806833866,-150.0,0.00011901,2]
[319504510,1710806833895,-150.0,0.00011901,2]
[319504511,1710806834009,-150.0,0.00011901,2]
[319504512,1710806834043,-150.0,0.00011901,2]
[319504513,1710806834172,-41.56257449,0.00011901,2]
[319504514,1710806836096,-235.98479686,0.00013599,2]
[319504515,1710806836116,-156.99624125,0.00014,2]
[319504516,1710806836136,-500.0,0.00014,2]
[319504517,1710806836156,-68.11910755,0.00014,2]
[319504518,1710806848086,-431.88089245,0.00014,2]
[319504519,1710806848106,-146.66010275,0.00014,2]
[319504520,1710806961463,-1572.02856684,0.00013999,2]
[319504521,1710806970150,-334.39126349,0.000139,2]
[319504522,1710806970171,-2129.5189323,0.00013999,2]
[319504523,1710806970191,-423.33989725,0.00014,2]
[319504524,1710806970211,-321.6642452,0.00015,2]
[319504525,1710806970233,-256.43,0.00015861,2]
[319504526,1710806970254,-150.0,0.00016875,2]
[319504527,1710806970278,-8.91386176,0.00016876,4]
[319504552,1710807031847,-170.92056435,0.000139,2]
[319504553,1710807031858,-279.07943565,0.000139,2]
[319504554,1710807031905,-307.29035117,0.000139,2]
[319504555,1710807032022,-4954.63021318,0.000139,2]
[319504556,1710807032031,-499.99,0.00016876,2]
[319504557,1710807032041,-999.99,0.00016876,2]
[319504558,1710807032051,-170.92056435,0.00017623,2]
[319504559,1710807032061,-500.0,0.00017763,2]
[319504560,1710807032074,-500.0,0.00017788,2]
[319504561,1710807032084,-407.08172936,0.00017808,2]
[319504562,1710807032096,-684.71908266,0.00017808,2]
[319504563,1710807032113,-750.85918798,0.00017808,2]
[319504564,1710807032123,-325.07650679,0.00017808,2]
[319504565,1710807032135,-1766.37349321,0.00017808,2]
[319504566,1710807032145,-1550.27328053,0.00017815,2]
[319504580,1710807037774,-1425.94447234,0.00017815,2]
[319504583,1710807037785,-319.79224713,0.00017815,2]
[319504585,1710807037794,-50.13888389,0.00017817,2]
[319504617,1710807038108,-709.09934092,0.00017817,2]
[319504620,1710807038119,-4240.76177519,0.00017817,2]
[319504622,1710807038130,-683.04,0.00017833,2]
[319504624,1710807038139,-399.3,0.0001793,2]
[319504626,1710807038149,-1611.93,0.00018046,2]
[319504628,1710807038159,-251.25,0.0001808,2]
[319504630,1710807038170,-677.05,0.00018086,2]
[319504632,1710807038179,-927.13,0.00018094,2]
[319504634,1710807038189,-816.89,0.00018102,2]
[319504636,1710807038198,-150.99,0.00018102,2]
[319504638,1710807038207,-499.99,0.00018102,2]
[319504640,1710807038217,-1000.0,0.0001811,2]
[319504641,1710807038227,-256.43,0.00018124,2]
[319504642,1710807038236,-251.25,0.00018129,2]
[319504643,1710807038246,-470.69,0.00018145,2]
[319504644,1710807038255,-250.0,0.00018146,2]
[319504645,1710807038265,-1643.76,0.00018158,2]
[319504646,1710807038275,-150.99,0.00018158,2]
[319504647,1710807038285,-200.0,0.00018163,2]
[319504648,1710807038295,-200.0,0.0001817,2]
[319504649,1710807038305,-251.25,0.00018179,2]
[319504650,1710807038315,-1460.64228977,0.00018185,2]
[319504651,1710807038329,-144.94771023,0.00018185,2]
[319504652,1710807038338,-523.51769979,0.00018189,2]
[319504653,1710807038350,-440.85230021,0.00018189,2]
[319504654,1710807038359,-150.0,0.00018194,2]
[319504655,1710807038369,-783.24575511,0.00018198,2]
[319504656,1710807038384,-511.250615,0.00018198,2]
[319504740,1710807053946,-469.63768121,0.00018198,2]
[319504741,1710807053958,-289.30814126,0.00018198,2]
[319504743,1710807053969,-1145.53780742,0.00018198,2]
[319504744,1710807053978,-8186.05,0.000182,2]
[319504745,1710807053987,-200.0,0.00018223,2]
[319504746,1710807053996,-251.25,0.00018228,2]
[319504747,1710807054005,-250.0,0.00018238,2]
[319504748,1710807054014,-235.98479686,0.00018239,2]
[319504749,1710807054023,-266.86613468,0.00018239,2]
[319504750,1710807054033,-155.05891391,0.00018239,2]
[319504751,1710807054042,-4174.61497112,0.00018239,2]
[319504752,1710807054053,-275.96458678,0.00018239,2]
[319504753,1710807054077,-242.41381289,0.00018239,2]
[319504754,1710807054087,-105.31643911,0.0001824,2]
[319504755,1710807054098,-49.68356089,0.0001824,2]
[319504756,1710807054107,-2186.19053698,0.0001824,2]
[319504757,1710807054118,-1745.55646344,0.0001824,2]
[319504758,1710807054210,-723.348404,0.0001824,2]
[319504759,1710807054222,-710.18137885,0.0001824,2]
[319504760,1710807054233,-467.71965302,0.0001824,2]
[319504761,1710807054244,-1287.48825632,0.0001824,2]
[319504762,1710807054334,-1220.20775906,0.0001824,2]
[319504763,1710807054345,-406.46916604,0.0001824,2]
[319504764,1710807054357,-288.89431385,0.0001824,2]
[319504765,1710807054366,-1758.55217449,0.00018241,2]
[319504766,1710807054378,-27087.64782551,0.00018241,2]
[319504767,1710807054387,-251.25,0.00018278,2]
[319504768,1710807054396,-228.04,0.00018321,2]
[319504769,1710807054405,-251.25,0.00018328,2]
[319504770,1710807054415,-196.53,0.00018342,2]
[319504771,1710807054424,-251.25,0.00018377,2]
[319504772,1710807054434,-2803.72,0.00018384,2]
[319504773,1710807054442,-251.25,0.00018427,2]
[319504774,1710807054451,-251.25,0.00018476,2]
[319504775,1710807054460,-251.25,0.00018526,2]
[319504776,1710807054469,-150.0,0.00018562,2]
[319504777,1710807054478,-251.25,0.00018575,2]
[319504778,1710807054486,-251.25,0.00018625,2]
[319504779,1710807054495,-251.25,0.00018675,2]
[319504780,1710807054504,-251.25,0.00018724,2]
[319504781,1710807054513,-251.25,0.00018774,2]
[319504782,1710807054521,-251.25,0.00018823,2]
[319504783,1710807054530,-251.25,0.00018873,2]
[319504784,1710807054540,-251.25,0.00018923,2]
[319504785,1710807054548,-251.25,0.00018972,2]
[319504786,1710807054557,-251.25,0.00019022,2]
[319504787,1710807054566,-500.0,0.00019178,2]
[319504788,1710807054576,-1748.0,0.00019285,2]
[319504789,1710807054588,-358.08244329,0.00019873,2]
[319504790,1710807054598,-269.59646817,0.00019873,2]
[319504791,1710807054606,-155.0,0.00019873,2]
[319504792,1710807054615,-208.61870071,0.00019874,2]
[319504793,1710807054625,-448.22650113,0.00019874,2]
[319504794,1710807054634,-1000.0,0.00020374,2]
[319504795,1710807054642,-256.43,0.00020388,2]
[319504796,1710807054651,-163.0,0.00020548,2]
[319504797,1710807054660,-200.16112036,0.00020785,2]
[319504798,1710807054673,-1411.76887964,0.00020785,2]
[319504799,1710807054682,-1187.19621521,0.000208,2]
[319504800,1710807054693,-1900.0,0.000208,2]
[319504801,1710807054707,-3042.06985391,0.000208,2]
[319504802,1710807054719,-1991.9104,0.000208,2]
[319504803,1710807054743,-3195.23258283,0.000208,2]
[319504804,1710807054756,-692.79472096,0.000208,2]
[319504805,1710807055274,-657.64266,0.000208,2]
[319504806,1710807055285,-452.68017388,0.000208,2]
[319504807,1710807055302,-664.40165721,0.000208,2]
[319504808,1710807055325,-1153.5,0.000208,2]
[319504809,1710807055338,-291.72,0.000208,2]
[319504810,1710807055353,-978.47988406,0.000208,2]
[319504811,1710807055364,-687.45625194,0.000208,2]
[319504812,1710807055373,-2927.54374806,0.000209,2]
[319504813,1710807055384,-6562.8,0.000209,2]
[319504814,1710807055444,-5811.09452656,0.000209,2]
[319504815,1710807055455,-8947.21879473,0.000209,2]
[319504816,1710807055466,-8943.78386462,0.000209,2]
[319504817,1710807055477,-9077.54866152,0.000209,2]
[319504818,1710807055488,-8943.84023489,0.000209,2]
[319504819,1710807055805,-504.94824857,0.00018239,2]
[319504820,1710807055815,-2455.84360591,0.000209,2]
[319504821,1710807055840,-0.00524789,0.000209,2]
[319504822,1710807055852,-2282.20613048,0.000209,2]
[319504823,1710807055865,-52377.82361956,0.000209,2]
[319504824,1710807055877,-2801.7142645,0.000209,2]
[319504825,1710807055888,-10457.39250472,0.000209,2]
[319504826,1710807056103,-1977.60108062,0.000209,2]
[319504827,1710807056629,-3000.8511,0.00016776,2]
[319504828,1710807056639,-161208.9594595,0.000209,2]
[319504829,1710807056648,-508.94651905,0.00021038,2]
[319504830,1710807056657,-208.08288677,0.00021138,2]
[319504831,1710807056666,-417.19534398,0.00021238,30]
[319504832,1710807056675,-161.03001629,0.00021238,120]
[319504833,1710807056685,-360.84099151,0.00021238,30]
[319504834,1710807056694,-500.69031908,0.00021238,120]
[319504835,1710807056707,-212.94215443,0.00021238,30]
[319504836,1710807056716,-310.47555232,0.00021238,30]
[319504837,1710807056725,-204.48917653,0.00021238,120]
[319504838,1710807056734,-207.53804032,0.00021238,120]
[319504839,1710807056743,-170.92056435,0.00021345,2]
[319504840,1710807056752,-163.0,0.00021781,2]
[319504841,1710807056761,-47269.28260874,0.000218,5]
[319504842,1710807056773,-13198.3366805,0.000218,5]
[319504843,1710807056785,-20307.59999999,0.000218,5]
[319504844,1710807056796,-1615.8465962,0.000218,5]
[319504845,1710807056807,-500.0,0.000218,5]
[319504846,1710807056818,-17033.99522463,0.000218,5]
[319504847,1710807056943,-1251.32754097,0.000218,5]
[319504848,1710807056958,-11350.0,0.000218,5]
[319504850,1710807057395,-394.76998356,0.000218,5]
[319504851,1710807057498,-7134.59999999,0.000218,5]
[319504852,1710807057510,-325.8801812,0.000218,5]
[319504857,1710807485349,-451.21497687,0.00013409,2]
[319504858,1710807485372,-235.98479686,0.0001341,2]
[319504859,1710807485393,-212.0,0.00013415,2]
[319504860,1710807485415,-361.97035984,0.00013418,2]
[319504861,1710807485442,-165.11632199,0.00015314,2]
[319504862,1710807485463,-165.11632199,0.00015314,2]
[319504863,1710807485485,-165.11632199,0.00015314,2]
[319504864,1710807485512,-300.0,0.00015323,2]
[319504865,1710807485535,-75898.98090046,0.00015324,2]
[319504866,1710807830122,-20000.0,0.0001414,2]
[319504867,1710807917845,-150.0,0.0001414,2]
[319504868,1710807918001,-150.0,0.0001414,2]
[319504869,1710807918081,-150.0,0.0001414,2]
[319504870,1710807918155,-150.0,0.0001414,2]
[319504871,1710807918188,-254.91691712,0.0001414,2]
[319504872,1710807925399,572.04464527,0.00014139,2]
[319504873,1710807955172,-2105.57194498,0.0001414,2]
[319504874,1710807964070,1585.721116,0.00014139,2]
[319504875,1710807970175,-30000.0,0.0001414,2]
[319504876,1710807982039,1585.29900268,0.00014139,2]
[319504877,1710808047094,-3217.92015172,0.0001414,2]
[319504878,1710808065738,-12579.55254097,0.0001414,2]
[319504879,1710808092556,399.09173424,0.00014139,2]
[319504880,1710808096028,1841.7586681,0.00012,2]
[319504881,1710808100321,544.08013174,0.00012018,2]
[319504882,1710808155127,-450.99363359,0.00015323,2]
[319504883,1710808155151,-235.98479686,0.00015323,2]
[319504884,1710808155173,-10363.04929584,0.00015479,2]
[319504885,1710808170183,-200.0,0.00015402,2]
[319504886,1710808170203,-46911.79135653,0.00015479,2]
[319504887,1710808173462,-85030.15934763,0.00015479,2]
[319504888,1710808173483,-209.97595039,0.000162,2]
[319504889,1710808173504,-162.95929418,0.000163,2]
[319504890,1710808173528,-755.05925899,0.000164,2]
[319504891,1710808173548,-16756.2996,0.00016675,2]
[319504892,1710808173568,-156.01520204,0.00016765,2]
[319504893,1710808173588,-204.93453493,0.00016773,2]
[319504894,1710808173609,-74397.02681184,0.00016775,2]
[319504907,1710808232008,-300.0,0.00016774,2]
[319504908,1710808232019,-1674.8225,0.00016775,2]
[319504909,1710808232030,-1667.15976627,0.00016775,2]
[319504910,1710808232043,-301.44505381,0.00016775,2]
[319504911,1710808232057,-928.53687171,0.00016775,2]
[319504912,1710808232091,-4477.0761,0.00016775,2]
[319504913,1710808232152,-491.01788678,0.00016775,2]
[319504914,1710808232163,-272.72700117,0.00016775,2]
[319504915,1710808232175,-250.0,0.00016775,2]
[319504916,1710808232187,-5517.08043662,0.00016775,2]
[319504917,1710808232200,-2733.68,0.00016775,2]
[319504918,1710808232225,-268.16578071,0.00016775,2]
[319504919,1710808232285,-1801.80284681,0.00016775,2]
[319504920,1710808232297,-424273.89065963,0.00016775,2]
[319504921,1710808232306,-645.70606298,0.00018092,2]
[319504922,1710808232316,-261.86215814,0.00018192,2]
[319504923,1710808232325,-281.28467575,0.00018192,2]
[319504924,1710808232334,-499.99,0.00018192,2]
[319504925,1710808232344,-162.95929418,0.00018796,2]
[319504926,1710808232353,-150.99,0.00018796,2]
[319504927,1710808232363,-150.99,0.00018796,2]
[319504928,1710808232372,-253.47,0.00019992,2]
[319504929,1710808232382,-12214.53,0.00020248,2]
[319504930,1710808232391,-6666.08,0.00020248,2]
[319504931,1710808232401,-291.07,0.00020248,7]
[319504933,1710808232411,-339.57301,0.00020249,2]
[319504935,1710808232420,-304.2399,0.000208,2]
[319504936,1710808232430,-162.95929418,0.00021291,2]
[319504937,1710808232698,-185.07450796,0.00021494,2]
[319504938,1710808232717,-150.0,0.00021537,2]
[319504939,1710808232727,-254.53543,0.0002156,2]
[319504940,1710808232736,-250.0,0.00021572,2]
[319504941,1710808232745,-275.26,0.00021587,2]
[319504942,1710808232755,-35348.62160902,0.0002159,2]
[319504943,1710808232764,-150.0,0.00021593,2]
[319504944,1710808232774,-500.0,0.00021594,2]
[319504945,1710808232784,-23880.0,0.00021601,2]
[319504946,1710808232793,-4461.67,0.00021611,2]
[319504947,1710808232803,-200.0,0.00021616,2]
[319504948,1710808232812,-3573.68,0.00021689,2]
[319504949,1710808232821,-15332.19496604,0.0002169,2]
[319504950,1710808232831,-172.33,0.00021701,2]
[319504951,1710808232839,-250.0,0.00021706,2]
[319504952,1710808232848,-235.34,0.00021793,2]
[319504953,1710808232858,-27985.75713924,0.000218,5]
[319504954,1710808232867,-200.0,0.00021828,2]
[319504955,1710808232876,-152.0,0.00021904,3]
[319504956,1710808232885,-150.0,0.00021909,2]
[319504957,1710808232894,-165.24,0.00021918,10]
[319504958,1710808232903,-645.70606297,0.00021922,2]
[319504959,1710808232912,-2293.45298846,0.00022,2]
[319504960,1710808232921,-250.0,0.00022029,2]
[319504961,1710808232930,-154.13,0.00022039,2]
[319504962,1710808232939,-243.74,0.00022088,2]
[319504963,1710808232948,-600.0,0.00022099,2]
[319504964,1710808232960,-177.88,0.00022193,2]
[319504965,1710808232968,-154.13,0.00022203,2]
[319504966,1710808232977,-253.47,0.00022256,2]
[319504967,1710808232986,-154.13,0.00022367,2]
[319504968,1710808232995,-154.13,0.00022531,2]
[319504969,1710808233004,-169.281994,0.00022675,2]
[319504970,1710808233013,-154.13,0.00022695,2]
[319504971,1710808233022,-154.13,0.00022859,2]
[319504972,1710808233033,-306.0676328,0.00023,2]
[319504973,1710808233045,-196.53,0.00023001,2]
[319504974,1710808233054,-163.0,0.00023013,2]
[319504975,1710808233064,-154.13,0.00023023,2]
[319504976,1710808233074,-174.06,0.00023044,2]
[319504977,1710808233083,-154.13,0.00023187,2]
[319504978,1710808233093,-300.0,0.00023224,2]
[319504979,1710808233102,-175.05,0.00023698,2]
[319504980,1710808233112,-162.95929418,0.00023787,2]
[319504981,1710808233122,-169.281994,0.00023809,2]
[319504982,1710808233131,-152.0,0.00023858,4]
[319504983,1710808233141,-157.19,0.0002398,2]
[319504984,1710808233150,-223.73529118,0.00024,2]
[319504985,1710808233159,-6131.05131055,0.00024,3]
[319504986,1710808233168,-254.53544,0.0002406,2]
[319504987,1710808233177,-175.05,0.00024113,2]
[319504988,1710808233186,-163.0,0.00024246,2]
[319504989,1710808233195,-369.0,0.00024332,2]
[319504990,1710808233205,-4461.67,0.00024351,2]
[319504991,1710808233219,-253.47,0.0002452,2]
[319504992,1710808233228,-175.05,0.00024528,2]
[319504993,1710808233237,-400.0,0.00024541,2]
[319504994,1710808233246,-330.34,0.00024664,2]
[319504995,1710808233255,-600.0,0.00024862,2]
[319504996,1710808233265,-175.05,0.00024942,2]
[319504997,1710808233274,-48150.13785731,0.00024998,2]
[319504998,1710808233284,-175.05,0.00025357,2]
[319504999,1710808233294,-163.0,0.00025479,2]
[319505000,1710808233304,-453.0,0.00025492,2]
[319505001,1710808233313,-645.70606297,0.00025751,2]
[319505002,1710808233323,-152.0,0.00025811,5]
[319505003,1710808233333,-253.41938888,0.00025811,5]
[319505004,1710808233342,-162.95929418,0.00026282,2]
[319505005,1710808233352,-671.0,0.000265,3]
[319505006,1710808233361,-254.53544,0.0002656,2]
[319505007,1710808233372,-558.0,0.00026708,2]
[319505008,1710808233381,-163.0,0.00026712,2]
[319505009,1710808233391,-253.47,0.00026783,2]
[319505010,1710808233402,-550.0,0.00027,26]
[319505011,1710808233412,-165.24,0.00027055,10]
[319505012,1710808233422,-4461.67,0.0002709,2]
[319505013,1710808233432,-244.43466488,0.00027397,2]
[319505014,1710808233442,-1046.921,0.00027569,2]
[319505015,1710808233452,-3000.0,0.00027569,2]
[319505016,1710808233466,-400.0,0.00027608,2]
[319505017,1710808233476,-600.0,0.00027624,2]
[319505018,1710808233486,-440.90137565,0.0002778,5]
[319505019,1710808233495,-150.0,0.0002788,2]
[319505020,1710808233505,-178.29,0.000279,2]
[319505021,1710808233514,-153.0,0.00027945,2]
[319505022,1710808233524,-1000.0,0.00027945,2]
[319505023,1710808233534,-157.19,0.00027977,120]
[319505024,1710808233544,-398.0,0.00027982,2]
[319505025,1710808233554,-450.0,0.00028,28]
[319505026,1710808233563,-781.0,0.00028316,2]
[319505027,1710808233573,-3295.0,0.00028316,2]
[319505028,1710808233582,-150.0,0.00028428,2]
[319505029,1710808233592,-178.29,0.00028448,2]
[319505030,1710808233601,-249.45346502,0.00028588,2]
[319505031,1710808233611,-781.0,0.00028608,2]
[319505032,1710808233621,-3295.0,0.00028608,2]
[319505033,1710808233630,-187.27459812,0.0002868,2]
[319505034,1710808233640,-187.27459803,0.0002868,2]
[319505035,1710808233649,-187.27459803,0.0002868,2]
[319505036,1710808233658,-187.27459803,0.0002868,2]
[319505037,1710808233668,-6645.24445539,0.0002869,2]
[319505038,1710808233677,-8670.24376706,0.00028778,5]
[319505039,1710808233687,-162.95929418,0.00028778,2]
[319505040,1710808233696,-151.15077774,0.00028779,2]
[319505041,1710808233706,-6214.44350638,0.0002878,2]
[319505042,1710808233722,-1285.55649362,0.0002878,2]
[319505043,1710808233731,-163.35989398,0.0002879,2]
[319505044,1710808233741,-849.47560941,0.0002879,2]
[319505045,1710808233751,-176.2350469,0.0002879,2]
[319505046,1710808233761,-469.0,0.0002879,2]
[319505047,1710808233771,-372.33780096,0.0002879,2]
[319505048,1710808233781,-770.69663152,0.0002879,2]
[319505049,1710808233790,-8326.52402052,0.0002879,2]
[319505050,1710808233799,-2500.0,0.00028878,10]
[319505051,1710808233809,-1727.63599013,0.00028879,2]
[319505052,1710808233818,-1708.6247553,0.00028879,5]
[319505053,1710808233828,-10428.18806068,0.00028879,2]
[319505054,1710808233838,-64506.90313906,0.00028879,2]
[319505055,1710808233869,-1470.46742543,0.00028879,2]
[319505056,1710808233881,-5340.2777366,0.00028879,2]
[319505076,1710808238042,-300.0,0.0001677,2]
[319505077,1710808238054,-156.01520204,0.00024341,2]
[319505078,1710808238063,-755.69411201,0.0002868,2]
[319505079,1710808238072,-111.4700117,0.00028879,2]
[319505080,1710808238084,-525.31020813,0.00028879,2]
[319505081,1710808238328,-3475.73147908,0.00028879,2]
[319505082,1710808238337,-6653.03563647,0.0002888,2]
[319505083,1710808238360,-1053.0157683,0.0002888,2]
[319505085,1710808238371,-529.65031335,0.0002888,2]
[319505087,1710808238395,-39659.22976074,0.0002888,2]
[319505089,1710808238475,-5711.14810682,0.0002888,2]
[319505090,1710808238486,-6675.51114715,0.0002888,2]
[319505107,1710808240098,-504.69552313,0.0002868,2]
[319505108,1710808240164,-250.99858887,0.0002868,2]
[319505109,1710808240174,-15089.59201779,0.0002888,2]
[319505110,1710808240290,-2308.77156697,0.0002888,2]
[319505111,1710808240301,-8521.60323804,0.0002888,2]
[319505115,1710808243069,-263.365994,0.0002888,2]
[319505116,1710808243082,-41846.69314902,0.0002888,2]
[319505117,1710808243093,-2892.14988603,0.0002888,2]
[319505118,1710808243183,-82075.25555753,0.0002888,2]
[319505119,1710808243196,-3399.3,0.0002888,2]
[319505120,1710808243210,-9837.94506352,0.0002888,2]
[319505121,1710808243234,-590.4151852,0.0002888,2]
[319505122,1710808243254,-352.71194401,0.0002888,2]
[319505123,1710808243265,-576.29772032,0.0002888,2]
[319505124,1710808243281,-302.49514902,0.0002888,2]
[319505125,1710808243294,-16968.29960287,0.0002888,2]
[319505126,1710808243393,-470.90830768,0.0002888,2]
[319505156,1710808246067,-281.31466261,0.000218,5]
[319505157,1710808246127,-3922.92469378,0.000218,5]
[319505158,1710808246213,-3183.95888,0.000218,5]
[319505159,1710808246261,-21.775,0.000218,5]
[319505160,1710808246802,-3566.5434888,0.000218,5]
[319505161,1710808246814,-758.65934643,0.000218,5]
[319505162,1710808246883,-6565.44598261,0.000218,5]
[319505166,1710809155109,-210.55719449,0.00018119,2]
[319505167,1710809202122,-3358.69343127,0.00018116,2]
[319505168,1710809202147,-679.2642083,0.00018116,2]
[319505169,1710809202173,-535.31108494,0.00018117,2]
[319505170,1710809202198,-529.30789956,0.00018118,2]
[319505171,1710809202224,-311.942674,0.00018119,2]
[319505172,1710809202248,-1104.58887321,0.00018119,2]
[319505173,1710809202271,-2973.09603977,0.00018119,2]
[319505174,1710809202295,-2342.21352072,0.00018119,2]
[319505175,1710809202323,-972.21381075,0.00018119,2]
[319505176,1710809202348,-293.36845748,0.00018119,2]
[319505177,1710809229133,-159.52126381,0.00018016,2]
[319505178,1710809229153,-522.49986849,0.00018118,2]
[319505179,1710809229173,-471.14443055,0.00018118,2]
[319505180,1710809229200,-2885.85465862,0.00018118,2]
[319505181,1710809229220,-160.81066975,0.00018118,2]
[319505182,1710809239095,-1041.77036561,0.00018018,2]
[319505190,1710809432191,-661.30225195,0.00013514,2]
[319505191,1710809432200,-529.30789956,0.00017816,2]
[319505192,1710809432210,-666.87715778,0.00017817,2]
[319505193,1710809432219,-666.87715777,0.00017917,2]
[319505194,1710809432229,-2054.87884132,0.00018017,2]
[319505195,1710809432239,-530.26989881,0.00018018,2]
[319505196,1710809432248,-790.01689369,0.00018117,2]
[319505197,1710809432257,-374.21210841,0.00018118,2]
[319505198,1710809432267,-678.92583166,0.00018118,2]
[319505199,1710809432276,-522.08488572,0.00018118,2]
[319505200,1710809432286,-1235.12692231,0.00018118,2]
[319505201,1710809432295,-5349.71648699,0.00018118,2]
[319505202,1710809432304,-482.38055094,0.00018119,2]
[319505203,1710809432314,-3131.66464069,0.00018119,2]
[319505204,1710809432323,-34998.02554367,0.0001812,2]
[319505205,1710809432333,-270.73,0.00019583,2]
[319505206,1710809432342,-542.03588327,0.00019619,2]
[319505207,1710809432351,-150.0,0.00019781,2]
[319505208,1710809432360,-904.0579959,0.00019813,2]
[319505209,1710809432373,-1000.0,0.00020158,2]
[319505210,1710809432384,-709.1,0.00020546,2]
[319505211,1710809432393,-235.34,0.00020546,2]
[319505212,1710809432403,-157.19,0.00020546,2]
[319505213,1710809432415,-500.0,0.00020815,2]
[319505214,1710809432424,-500.0,0.00020815,2]
[319505215,1710809432433,-208.4264,0.000217,2]
[319505216,1710809432443,-431.4417,0.000217,2]
[319505217,1710809432453,-6866.7077,0.000217,2]
[319505218,1710809432462,-373.8809731,0.00021798,2]
[319505219,1710809432471,-155.0,0.00021798,2]
[319505220,1710809432480,-1050.02772629,0.00021798,2]
[319505221,1710809432491,-617.56745994,0.00021798,2]
[319505222,1710809432501,-155.0,0.00021798,2]
[319505223,1710809432510,-658.9308272,0.00021798,2]
[319505224,1710809432519,-2163.23429142,0.00021798,2]
[319505225,1710809432528,-3634.53090045,0.00021799,2]
[319505226,1710809432537,-160.25297431,0.00021799,2]
[319505227,1710809432547,-503.86501208,0.00021799,2]
[319505228,1710809432556,-1374.23158874,0.00021799,2]
[319505229,1710809432564,-130066.77390079,0.000218,5]
[319505230,1710809432574,-461.47135613,0.00021818,2]
[319505231,1710809432582,-511.25,0.00021841,2]
[319505232,1710809432591,-760.0,0.00021843,2]
[319505233,1710809432600,-270.73,0.00021847,2]
[319505234,1710809432609,-85933.7943,0.000219,2]
[319505235,1710809432620,-161.18,0.00021918,10]
[319505236,1710809432630,-10000.0,0.0002196,2]
[319505237,1710809432639,-250.0,0.00021979,2]
[319505238,1710809432648,-9440.2757058,0.00022,2]
[319505239,1710809432658,-250.0,0.00022101,2]
[319505240,1710809432667,-250.0,0.00022751,2]
[319505242,1710809432677,-306.0676328,0.00023,2]